fUST/lending_fUST_20260222
["ID","MTS","AMOUNT","RATE_DAILY","PERIOD"]
[406293350,1771695038527,-500.0,0.00015599,2]
[406293352,1771695038537,-500.0,0.00015599,2]
[406293354,1771695038546,-500.0,0.00015599,2]
[406293356,1771695038555,-500.0,0.00015599,2]
[406293358,1771695038564,-500.0,0.00015599,2]
[406293360,1771695038574,-629.66045945,0.00015599,2]
[406293362,1771695038582,-500.0,0.00015599,2]
[406293364,1771695038591,-500.0,0.00015599,2]
[406293366,1771695038601,-500.0,0.00015599,2]
[406293368,1771695038611,-500.0,0.00015599,2]
[406293370,1771695038620,-500.0,0.00015599,2]
[406293371,1771695038630,-500.0,0.00015599,2]
[406293372,1771695038640,-500.0,0.00015599,2]
[406293374,1771695038650,-500.0,0.00015599,2]
[406293375,1771695038659,-500.0,0.00015599,2]
[406293376,1771695038670,-7150.08099743,0.000156,2]
[406293377,1771695038680,-1680.55446081,0.00015606,2]
[406293378,1771695038689,-2346.31584459,0.0001562,3]
[406293379,1771695038699,-674.71058368,0.00015829,2]
[406293380,1771695038708,-587.0,0.00015953,2]
[406293381,1771695038717,-259.02,0.00016,2]
[406293382,1771695038726,-630.0,0.00016008,2]
[406293383,1771695038735,-350.0,0.00016008,2]
[406293384,1771695038744,-630.0,0.00016008,2]
[406293385,1771695038753,-630.0,0.00016008,2]
[406293386,1771695038762,-350.0,0.00016008,2]
[406293387,1771695038771,-630.0,0.00016008,2]
[406293388,1771695038781,-350.0,0.00016008,2]
[406293389,1771695038790,-630.0,0.00016008,2]
[406293390,1771695038799,-350.0,0.00016008,2]
[406293391,1771695038808,-630.0,0.00016008,2]
[406293392,1771695038819,-350.0,0.00016008,2]
[406293393,1771695038829,-350.0,0.00016008,2]
[406293394,1771695038839,-630.0,0.00016008,2]
[406293395,1771695038848,-350.0,0.00016008,2]
[406293396,1771695038858,-630.0,0.00016008,2]
[406293397,1771695038867,-350.0,0.00016008,2]
[406293398,1771695038968,-630.0,0.00016008,2]
[406293399,1771695038977,-350.0,0.00016008,2]
[406293400,1771695038986,-630.0,0.00016008,2]
[406293401,1771695038995,-299.0834778,0.00016008,2]
[406293402,1771695039005,-350.0,0.00016008,2]
[406293403,1771695039015,-350.0,0.00016008,2]
[406293404,1771695039026,-460.20338763,0.00016008,2]
[406293405,1771695039035,-151.0,0.00016012,2]
[406293406,1771695039045,-151.0,0.00016012,2]
[406293407,1771695039055,-151.0,0.00016012,2]
[406293408,1771695039064,-3000.0,0.00016012,2]
[406293409,1771695039074,-788.52575132,0.0001608,5]
[406293410,1771695039084,-1000.0,0.00016089,2]
[406293411,1771695039093,-1214.47905062,0.00016093,2]
[406293412,1771695039102,-3089.3743471,0.00016259,2]
[406293413,1771695039112,-2159.07386778,0.00016358,2]
[406293414,1771695039121,-576.0964769,0.0001636,2]
[406293415,1771695039131,-151.0,0.00016427,2]
[406293416,1771695039139,-151.0,0.00016427,2]
[406293417,1771695039149,-151.0,0.00016427,2]
[406293418,1771695039158,-154.214515,0.00016438,2]
[406293419,1771695039167,-247.2398083,0.00016475,2]
[406293420,1771695039176,-411.34945263,0.00016519,2]
[406293421,1771695039186,-2677.9625421,0.0001652,2]
[406293422,1771695039195,-2209.0595588,0.0001652,2]
[406293423,1771695039205,-1621.5416745,0.0001652,2]
[406293424,1771695039214,-151.0,0.00016523,2]
[406293425,1771695039224,-151.0,0.00016523,2]
[406293426,1771695039234,-500.0,0.0001656,2]
[406293427,1771695039243,-3373.5529184,0.00016622,2]
[406293428,1771695039253,-1036.97365841,0.00016801,2]
[406293429,1771695039263,-204.0,0.00016815,2]
[406293430,1771695039273,-500.0,0.00016826,2]
[406293431,1771695039283,-435.84625085,0.00016881,2]
[406293432,1771695039292,-4857.91620249,0.00016886,2]
[406293433,1771695039301,-278.17661,0.00016895,2]
[406293434,1771695039310,-51100.33694273,0.0001699,2]
[406293435,1771695039321,-48191.92389905,0.00017,2]
[406293436,1771695039331,-151.0,0.00017,2]
[406293437,1771695039340,-4415.12176773,0.0001705,2]
[406293438,1771695039350,-2394.06184108,0.00017066,3]
[406293439,1771695039359,-1843.50872607,0.00017242,2]
[406293440,1771695039368,-151.0,0.00017292,2]
[406293441,1771695039377,-3150.94890226,0.00017436,5]
[406293442,1771695039392,-823.0,0.0001749,2]
[406293443,1771695039407,-250.0,0.00017663,2]
[406293444,1771695039417,-250.0,0.00017663,2]
[406293445,1771695039428,-209.40437684,0.00017663,2]
[406293446,1771695039439,-250.0,0.00017663,2]
[406293447,1771695039448,-217.15233878,0.00017663,2]
[406293448,1771695039458,-250.0,0.00017663,2]
[406293449,1771695039468,-250.0,0.00017663,2]
[406293450,1771695039478,-225.18697532,0.00017663,2]
[406293451,1771695039488,-151.0,0.00017663,2]
[406293452,1771695039498,-250.0,0.00017663,2]
[406293453,1771695039508,-233.51889341,0.00017663,2]
[406293454,1771695039518,-189.65840317,0.00017663,2]
[406293455,1771695039530,-250.0,0.00017663,2]
[406293456,1771695039540,-242.15909246,0.00017663,2]
[406293458,1771695039550,-250.0,0.00017663,2]
[406293460,1771695039559,-251.11897888,0.00017663,2]
[406293462,1771695039569,-250.0,0.00017663,2]
[406293464,1771695039579,-260.4103811,0.00017663,2]
[406293465,1771695039590,-250.0,0.00017663,2]
[406293466,1771695039600,-250.0,0.00017663,2]
[406293467,1771695039610,-270.0455652,0.00017663,2]
[406293468,1771695039619,-500.0,0.00017663,2]
[406293469,1771695039629,-280.03725112,0.00017663,2]
[406293470,1771695039639,-500.0,0.00017663,2]
[406293471,1771695039648,-290.39862941,0.00017663,2]
[406293472,1771695039658,-500.0,0.00017663,2]
[406293473,1771695039668,-301.1433787,0.00017663,2]
[406293474,1771695039678,-500.0,0.00017663,2]
[406293475,1771695039688,-500.0,0.00017663,2]
[406293476,1771695039697,-500.0,0.00017663,2]
[406293477,1771695039707,-500.0,0.00017663,2]
[406293478,1771695039716,-500.0,0.00017663,2]
[406293479,1771695039725,-500.0,0.00017663,2]
[406293480,1771695039735,-500.0,0.00017663,2]
[406293481,1771695039744,-250.0,0.00017663,2]
[406293482,1771695039753,-500.0,0.00017663,2]
[406293483,1771695039763,-250.0,0.00017663,2]
[406293484,1771695039772,-250.0,0.00017663,2]
[406293485,1771695039782,-250.0,0.00017663,2]
[406293486,1771695039791,-250.0,0.00017663,2]
[406293487,1771695039801,-250.0,0.00017663,2]
[406293488,1771695039810,-250.0,0.00017663,2]
[406293489,1771695039821,-250.0,0.00017663,2]
[406293490,1771695039831,-250.0,0.00017663,2]
[406293492,1771695039840,-250.0,0.00017663,2]
[406293493,1771695039849,-151.0,0.000177,2]
[406293494,1771695039858,-275.0,0.00017807,2]
[406293495,1771695039869,-150.0,0.00017808,2]
[406293496,1771695039878,-150.0,0.00017808,2]
[406293497,1771695039887,-500.0,0.0001784,2]
[406293498,1771695039899,-151.0,0.0001784,2]
[406293499,1771695039908,-297.90619,0.0001784,2]
[406293500,1771695039917,-151.0,0.00017948,2]
[406293501,1771695039927,-151.0,0.00017948,2]
[406293502,1771695039936,-151.0,0.00017948,2]
[406293503,1771695039945,-316.0,0.00017964,2]
[406293504,1771695039955,-174.05404195,0.00018,2]
[406293505,1771695039964,-687038.28504627,0.00018,2]
[406293507,1771695039973,-3019.87866192,0.00018,2]
[406293509,1771695039983,-250.0,0.00018,2]
[406293511,1771695039992,-368.0,0.00018121,2]
[406293513,1771695040001,-383.36669124,0.00018202,2]
[406293515,1771695040010,-569.8647898,0.00018202,2]
[406293517,1771695040019,-153.0146214,0.00018356,2]
[406293519,1771695040028,-250.0,0.00018356,2]
[406293521,1771695040038,-151.0,0.000184,2]
[406293523,1771695040047,-2537.29983094,0.00018511,3]
[406293525,1771695040056,-2209.0595588,0.00018619,2]
[406293527,1771695040065,-2677.9625421,0.00018646,2]
[406293529,1771695040075,-231.0,0.00018815,2]
[406293531,1771695040084,-283.7800358,0.00018896,2]
[406293533,1771695040093,-500.0,0.00018896,2]
[406293535,1771695040102,-151.0,0.00018897,2]
[406293536,1771695040111,-151.0,0.00018897,2]
[406293538,1771695040120,-151.0,0.00018897,2]
[406293540,1771695040130,-151.0,0.00018897,2]
[406293542,1771695040139,-1000.0,0.00018897,2]
[406293544,1771695040148,-1000.0,0.00018897,2]
[406293546,1771695040157,-1000.0,0.00018897,2]
[406293548,1771695040167,-1024.27694507,0.00018897,2]
[406293550,1771695040175,-179.58550624,0.00018897,2]
[406293552,1771695040184,-151.0,0.00018897,2]
[406293554,1771695040194,-151.0,0.00018897,2]
[406293556,1771695040204,-151.0,0.00018897,2]
[406293558,1771695040213,-151.41911708,0.00018897,2]
[406293560,1771695040222,-350.0,0.00018904,2]
[406293562,1771695040232,-6891.72913431,0.00018943,2]
[406293564,1771695040241,-358.94901135,0.00019,20]
[406293566,1771695040250,-2603.49,0.00019,2]
[406293568,1771695040259,-3778.93995287,0.00019,2]
[406293570,1771695040268,-153.280194,0.00019049,2]
[406293572,1771695040278,-151.0,0.000191,2]
[406293574,1771695040288,-1152.0,0.00019176,2]
[406293576,1771695040297,-1278.0165,0.00019178,2]
[406293578,1771695040306,-167.787707,0.00019178,2]
[406293580,1771695040315,-151.0,0.00019178,2]
[406293582,1771695040325,-151.0,0.00019178,2]
[406293584,1771695040334,-289.263922,0.00019178,2]
[406293586,1771695040343,-151.0,0.00019178,2]
[406293588,1771695040352,-151.0,0.00019178,2]
[406293590,1771695040362,-151.0,0.00019178,2]
[406293592,1771695040371,-151.0,0.00019178,2]
[406293594,1771695040379,-151.0,0.00019178,2]
[406293596,1771695040388,-151.0,0.00019178,2]
[406293598,1771695040397,-151.0,0.00019178,2]
[406293600,1771695040407,-151.0,0.00019178,2]
[406293602,1771695040415,-258.811852,0.00019178,2]
[406293604,1771695040424,-156.0,0.00019178,2]
[406293606,1771695040434,-168.93,0.000192,2]
[406293608,1771695040443,-1381.56,0.000192,2]
[406293610,1771695040453,-450.0,0.00019452,2]
[406293612,1771695040462,-1621.5416745,0.00019457,2]
[406293614,1771695040471,-255.6035,0.00019589,3]
[406293616,1771695040480,-500.0,0.00019762,2]
[406293618,1771695040489,-151.0,0.000199,2]
[406293619,1771695040499,-151.0,0.00019939,2]
[406293622,1771695040510,-151.0,0.00019939,2]
[406293623,1771695040519,-151.0,0.00019939,2]
[406293625,1771695040528,-151.0,0.00019939,2]
[406293627,1771695040537,-2863.86515644,0.0001994,2]
[406293629,1771695040547,-632.89345063,0.0001994,2]
[406293631,1771695040556,-2728.28381741,0.00019956,3]
[406293633,1771695040565,-600.0,0.0002,2]
[406293635,1771695040574,-151.0,0.000206,3]
[406293637,1771695040583,-2209.0595588,0.00020717,2]
[406293639,1771695040592,-150.0,0.00020735,30]
[406293641,1771695040601,-2677.9625421,0.00020772,2]
[406293642,1771695040610,-258.0,0.00020815,2]
[406293643,1771695040618,-3492.92,0.00020923,3]
[406293644,1771695040628,-1746.46,0.00020923,3]
[406293645,1771695040638,-873.23,0.00020923,3]
[406293646,1771695040646,-436.61,0.00020923,3]
[406293647,1771695040656,-218.31,0.00020923,3]
[406293649,1771695040665,-654.93,0.00020923,3]
[406293650,1771695040674,-151.0,0.00020933,2]
[406293651,1771695040683,-151.0,0.00020933,2]
[406293653,1771695040692,-151.0,0.00020933,2]
[406293655,1771695040702,-603.43,0.00020933,2]
[406293656,1771695040711,-151.0,0.00020933,2]
[406293657,1771695040721,-151.0,0.00020933,2]
[406293658,1771695040729,-169.508869,0.00020933,2]
[406293659,1771695040739,-151.0,0.00020989,2]
[406293660,1771695040748,-151.0,0.00020989,2]
[406293661,1771695040757,-157.497378,0.00020989,2]
[406293662,1771695040766,-616.97630018,0.00020989,2]
[406293663,1771695040775,-1566.0,0.00021024,2]
[406293664,1771695040785,-2000.0,0.00021282,7]
[406293665,1771695040793,-151.0,0.000213,3]
[406293666,1771695040802,-2919.26780389,0.00021401,3]
[406293667,1771695040811,-193.442738,0.00021918,2]
[406293668,1771695040823,-193.442738,0.00021918,2]
[406293669,1771695040832,-193.442738,0.00021918,2]
[406293670,1771695040841,-193.442738,0.00021918,2]
[406293671,1771695040850,-193.442738,0.00021918,2]
[406293672,1771695040859,-193.442738,0.00021918,2]
[406293673,1771695040868,-193.442738,0.00021918,2]
[406293674,1771695040877,-193.442738,0.00021918,2]
[406293675,1771695040887,-193.442738,0.00021918,2]
[406293676,1771695040900,-193.442738,0.00021918,2]
[406293677,1771695040910,-193.442738,0.00021918,2]
[406293678,1771695040919,-193.442738,0.00021918,2]
[406293679,1771695040929,-193.442738,0.00021918,2]
[406293680,1771695041036,-193.442738,0.00021918,2]
[406293681,1771695041045,-193.442738,0.00021918,2]
[406293682,1771695041055,-193.442738,0.00021918,2]
[406293683,1771695041064,-193.442738,0.00021918,2]
[406293684,1771695041073,-193.442738,0.00021918,2]
[406293685,1771695041082,-193.442738,0.00021918,2]
[406293686,1771695041092,-193.44273,0.00021918,2]
[406293687,1771695041102,-500.0,0.00021918,2]
[406293688,1771695041111,-339.69,0.00021918,2]
[406293689,1771695041123,-500.0,0.00021973,2]
[406293690,1771695041133,-151.0,0.00022,4]
[406293691,1771695041143,-290.67672449,0.00022028,2]
[406293692,1771695041153,-165.97,0.000221,7]
[406293693,1771695041162,-6985.84,0.00022293,3]
[406293694,1771695041172,-3492.92,0.00022293,3]
[406293695,1771695041181,-1746.46,0.00022293,3]
[406293696,1771695041190,-873.22,0.00022293,3]
[406293697,1771695041200,-436.62,0.00022293,3]
[406293698,1771695041209,-1621.5416745,0.00022394,2]
[406293699,1771695041218,-1381.56,0.000224,14]
[406293700,1771695041228,-151.0,0.000227,6]
[406293701,1771695041238,-285.0,0.00022815,2]
[406293702,1771695041247,-2209.0595588,0.00022816,2]
[406293703,1771695041256,-3110.25179036,0.00022847,3]
[406293704,1771695041266,-2677.9625421,0.00022898,2]
[406293705,1771695041275,-743.87469872,0.00023,3]
[406293706,1771695041285,-322.72803971,0.00023252,2]
[406293707,1771695041294,-347.05043637,0.00023252,2]
[406293708,1771695041304,-624.69078547,0.00023252,2]
[406293709,1771695041315,-1110.56139639,0.00023252,2]
[406293710,1771695041325,-555.80351,0.00023252,2]
[406293711,1771695041335,-1000.44631799,0.00023252,2]
[406293712,1771695041344,-1778.57123199,0.00023252,2]
[406293713,1771695041353,-387.06745522,0.00023252,2]
[406293714,1771695041364,-151.0,0.000234,9]
[406293715,1771695041374,-151.0,0.00023488,2]
[406293716,1771695041384,-151.0,0.00023488,2]
[406293717,1771695041404,-151.0,0.00023488,2]
[406293718,1771695041414,-368.83204538,0.00023854,2]
[406293719,1771695041424,-1516.07056971,0.00023909,2]
[406293720,1771695041433,-200.01,0.00024,14]
[406293721,1771695041442,-4519.21,0.00024,6]
[406293722,1771695041452,-626.0,0.00024049,2]
[406293723,1771695041461,-433.1,0.00024049,2]
[406293724,1771695041470,-333.401,0.00024049,2]
[406293725,1771695041479,-199.88,0.00024049,2]
[406293726,1771695041489,-2006.82238336,0.00024138,2]
[406293727,1771695041498,-225.56,0.000242,7]
[406293728,1771695041507,-3301.23577684,0.00024292,3]
[406293729,1771695041517,-475.85098321,0.00024475,2]
[406293730,1771695041526,-856.53176978,0.00024475,2]
[406293731,1771695041536,-1522.72314627,0.00024475,2]
[406293732,1771695041545,-1171.4756652,0.0002465,2]
[406293733,1771695041555,-312.0,0.00024815,2]
[406293734,1771695041564,-48383.3503878,0.000249,2]
[406293735,1771695041573,-300.0,0.00025,30]
[406293736,1771695041583,-161.0,0.00025,30]
[406293737,1771695041592,-1381.56,0.00025,14]
[406293738,1771695041601,-444.0,0.00025087,10]
[406293739,1771695041611,-1621.5416745,0.00025331,2]
[406293740,1771695041620,-150.0,0.00025512,30]
[406293741,1771695041629,-743.87469872,0.00025635,2]
[406293742,1771695041638,-3539.96575993,0.00025737,6]
[406293743,1771695041647,-151.0,0.00025834,2]
[406293744,1771695041656,-206.2356495,0.00026042,2]
[406293745,1771695041666,-620.98007416,0.00026042,2]
[406293746,1771695041675,-500.0,0.00026688,7]
[406293747,1771695041684,-339.0,0.00026815,2]
[406293748,1771695041694,-500.0,0.00026835,20]
[406293749,1771695041703,-389.56381154,0.00027,30]
[406293750,1771695041712,-225.56,0.00027,7]
[406293751,1771695041721,-181.0,0.00027049,2]
[406293752,1771695041730,-3635.45775317,0.00027183,14]
[406293753,1771695041740,-151.0,0.00027397,2]
[406293754,1771695041749,-151.0,0.00027397,2]
[406293755,1771695041758,-151.0,0.00027397,2]
[406293756,1771695041767,-151.0,0.00027397,2]
[406293757,1771695041776,-151.0,0.00027397,2]
[406293758,1771695041787,-151.0,0.00027397,2]
[406293759,1771695041796,-151.0,0.00027397,2]
[406293760,1771695041805,-151.0,0.00027397,2]
[406293761,1771695041815,-151.334419,0.00027397,2]
[406293762,1771695041827,-168.170893,0.00027397,2]
[406293763,1771695041837,-150.0,0.000274,30]
[406293764,1771695041847,-1016.30509565,0.00027438,2]
[406293765,1771695041856,-1381.56,0.000275,14]
[406293766,1771695041866,-393.61635383,0.00028,30]
[406293767,1771695041877,-150.0,0.00028,5]
[406293768,1771695041887,-250.0,0.00028548,5]
[406293769,1771695041896,-4399.39369907,0.00028628,14]
[406293770,1771695041906,-500.0,0.00028724,7]
[406293771,1771695041916,-173.8155556,0.000288,7]
[406293772,1771695041925,-361.85805966,0.00028815,2]
[406293773,1771695041935,-870.10925679,0.00028882,2]
[406293774,1771695041944,-11084.03976259,0.00029,2]
[406293775,1771695041954,-785.0,0.00029,2]
[406293776,1771695041963,-350.0,0.00029096,5]
[406293777,1771695041973,-818.0,0.00029218,2]
[406293778,1771695041984,-150.0,0.00029622,30]
[406293779,1771695041993,-450.0,0.00029644,5]
[406293780,1771695042002,-225.56,0.000297,7]
[406293781,1771695042011,-329.0,0.00029785,2]
[406293782,1771695042020,-180.0,0.00029808,14]
[406293783,1771695042030,-329.0,0.00029877,2]
[406293784,1771695042039,-818.0,0.00029941,2]
[406293785,1771695042048,-165.46,0.0003,5]
[406293786,1771695042058,-720.0,0.0003,60]
[406293787,1771695042067,-162.0,0.0003,14]
[406293788,1771695042076,-181.0,0.00030049,2]
[406293789,1771695042085,-4685.86967879,0.00030073,14]
[406293790,1771695042095,-249.97999945,0.00030137,7]
[406293791,1771695042105,-550.0,0.00030192,5]
[406293792,1771695042115,-1381.56,0.000302,14]
[406293793,1771695042124,-329.0,0.00030206,2]
[406293794,1771695042134,-329.0,0.00030262,2]
[406293795,1771695042143,-329.0,0.00030288,2]
[406293796,1771695042152,-329.0,0.000303,2]
[406293797,1771695042162,-329.0,0.00030348,2]
[406293798,1771695042171,-329.0,0.00030392,2]
[406293799,1771695042180,-158.404,0.00030434,26]
[406293800,1771695042189,-329.0,0.00030441,7]
[406293801,1771695042202,-329.0,0.00030483,2]
[406293802,1771695042213,-818.0,0.00030495,2]
[406293803,1771695042223,-329.0,0.00030571,2]
[406293804,1771695042233,-818.0,0.00030699,7]
[406293805,1771695042242,-650.0,0.0003074,5]
[406293806,1771695042252,-818.0,0.00030859,7]
[406293807,1771695042261,-350.0,0.00031,60]
[406293808,1771695042271,-5000.0,0.00031,2]
[406293809,1771695042281,-1001.72360959,0.00031161,15]
[406293810,1771695042290,-818.0,0.00031198,2]
[406293811,1771695042299,-818.0,0.0003125,2]
[406293812,1771695042308,-329.0,0.00031271,2]
[406293813,1771695042317,-750.0,0.00031288,5]
[406293814,1771695042326,-329.0,0.00031442,2]
[406293815,1771695042336,-5163.32964498,0.00031518,14]
[406293816,1771695042346,-173.0,0.0003152,3]
[406293817,1771695042355,-329.0,0.0003154,2]
[406293818,1771695042364,-329.0,0.00031561,2]
[406293819,1771695042373,-225.56,0.000316,7]
[406293820,1771695042382,-329.0,0.00031604,2]
[406293821,1771695042391,-162.0,0.00031644,14]
[406293822,1771695042400,-329.0,0.00031647,7]
[406293823,1771695042411,-402.0,0.00031749,3]
[406293824,1771695042420,-402.0,0.00031776,3]
[406293825,1771695042429,-329.0,0.00031808,2]
[406293826,1771695042438,-850.0,0.00031836,5]
[406293827,1771695042447,-150.0,0.00031844,30]
[406293828,1771695042457,-1381.56,0.000319,14]
[406293829,1771695042466,-638.52179049,0.00031903,2]
[406293830,1771695042475,-206.48498689,0.00032,2]
[406293831,1771695042484,-351.21375901,0.00032,3]
[406293832,1771695042493,-402.0,0.00032069,3]
[406293833,1771695042503,-950.0,0.00032384,5]
[406293834,1771695042513,-402.0,0.0003243,11]
[406293835,1771695042522,-170.0,0.00032548,54]
[406293836,1771695042532,-714.0,0.00032554,11]
[406293837,1771695042541,-2000.0,0.00032592,2]
[406293838,1771695042551,-2000.0,0.00032592,2]
[406293839,1771695042560,-2000.0,0.00032592,2]
[406293840,1771695042569,-2000.0,0.00032592,2]
[406293841,1771695042578,-2000.0,0.00032592,2]
[406293842,1771695042587,-2000.0,0.00032592,2]
[406293843,1771695042596,-1494.0,0.00032592,2]
[406293844,1771695042605,-500.0,0.00032592,2]
[406293846,1771695042613,-500.0,0.00032592,2]
[406293848,1771695042622,-500.0,0.00032592,2]
[406293849,1771695042631,-500.0,0.00032592,2]
[406293851,1771695042640,-500.0,0.00032592,2]
[406293853,1771695042649,-500.0,0.00032592,2]
[406293856,1771695042659,-500.0,0.00032592,2]
[406293857,1771695042669,-500.0,0.00032592,2]
[406293859,1771695042678,-200.627429,0.000326,2]
[406293860,1771695042687,-402.0,0.0003275,11]
[406293861,1771695042696,-402.0,0.0003275,11]
[406293862,1771695042705,-402.0,0.00032864,11]
[406293863,1771695042714,-8536.5,0.00032877,10]
[406293864,1771695042723,-7113.75,0.00032877,10]
[406293865,1771695042732,-5928.12,0.00032877,10]
[406293866,1771695042741,-250.0,0.000329,10]
[406293867,1771695042750,-168.93,0.000329,7]
[406293868,1771695042760,-57127.67,0.000329,14]
[406293869,1771695042769,-1516.07056971,0.00032908,2]
[406293870,1771695042778,-1050.0,0.00032932,5]
[406293871,1771695042787,-5831.77359764,0.00032964,14]
[406293873,1771695042796,-1177.23,0.00033,120]
[406293875,1771695042805,-250.0,0.00033,10]
[406293877,1771695042815,-250.0,0.000331,10]
[406293878,1771695042828,-250.0,0.000332,10]
[406293881,1771695042838,-344.19016166,0.00033261,30]
[406293882,1771695042919,-250.0,0.000333,10]
[406293883,1771695042928,-250.0,0.000334,10]
[406293884,1771695042937,-53247.60829715,0.0003342,2]
[406293885,1771695042945,-1150.0,0.00033479,5]
[406293886,1771695042954,-250.0,0.000335,10]
[406293887,1771695042963,-1108.68694206,0.00033508,5]
[406293888,1771695042972,-250.0,0.000336,10]
[406293889,1771695042981,-1381.56,0.000336,30]
[406293890,1771695042990,-12000.0,0.000337,60]
[406293891,1771695042999,-200.0,0.000337,120]
[406293892,1771695043008,-200.0,0.000337,120]
[406293893,1771695043017,-496.191802,0.000337,10]
[406293894,1771695043025,-11680.7953602,0.00034,2]
[406293895,1771695043335,-1038.11256931,0.000192,2]
[406293897,1771695044584,-250.0,0.00017663,2]
[406293898,1771695044594,-195.37030241,0.00017663,2]
[406293899,1771695044750,-54.62969759,0.00017663,2]
[406293900,1771695044760,-250.0,0.00017663,2]
[406293901,1771695044771,-250.0,0.00017663,2]
[406293902,1771695044781,-2506.50743069,0.000192,2]
[406293903,1771695044791,-1679.02949773,0.000224,2]
[406293906,1771695045978,-250.0,0.00017663,2]
[406293907,1771695045988,-250.0,0.00017663,2]
[406293908,1771695045998,-1865.59050227,0.000224,2]
[406293909,1771695046007,-150.0,0.00022575,30]
[406293910,1771695046017,-3544.62,0.000249,2]
[406293911,1771695046027,-3544.62,0.000274,2]
[406293912,1771695046036,-3544.62,0.000302,2]
[406293913,1771695046046,-3544.62,0.000319,2]
[406293914,1771695046055,-500.0,0.00032592,2]
[406293915,1771695046064,-500.0,0.00032592,2]
[406293916,1771695046074,-500.0,0.00032592,2]
[406293917,1771695046083,-500.0,0.00032592,2]
[406293918,1771695046092,-500.0,0.00032592,2]
[406293919,1771695046102,-500.0,0.00032592,2]
[406293920,1771695046111,-500.0,0.00032592,2]
[406293921,1771695046120,-500.0,0.00032592,2]
[406293922,1771695046129,-57127.67,0.000335,14]
[406293923,1771695046139,-3544.62,0.000336,14]
[406293924,1771695046148,-13611.49362187,0.00034,2]
[406293925,1771695046159,-1017.52235704,0.00034,2]
[406293926,1771695046170,-346.38830132,0.00034,2]
[406293927,1771695046181,-1257.87188007,0.00034,2]
[406293928,1771695046192,-302.98981862,0.00034,2]
[406293933,1771695242842,5000.0,0.000156,120]
[406293934,1771695258636,5000.0,0.000156,120]
[406293935,1771695266393,5000.0,0.000156,120]
[406294013,1771696232105,-1241.38948878,0.00012004,2]
[406294041,1771696238189,-2407.88783562,0.00012004,2]
[406294042,1771696238199,-589.0,0.00012004,2]
[406294043,1771696238209,-3207.69703952,0.00012125,2]
[406294044,1771696238219,-150.0,0.00012309,2]
[406294045,1771696238229,-209.2615771,0.00012332,2]
[406294046,1771696238238,-300.0,0.00013272,2]
[406294047,1771696238248,-613.93230994,0.00013273,2]
[406294048,1771696238257,-500.0,0.00013273,2]
[406294049,1771696238267,-500.0,0.00013273,2]
[406294050,1771696238276,-500.0,0.00013273,2]
[406294051,1771696238285,-500.0,0.00013273,2]
[406294052,1771696238294,-500.0,0.00013273,2]
[406294053,1771696238303,-500.0,0.00013273,2]
[406294054,1771696238313,-500.0,0.00013273,2]
[406294055,1771696238322,-500.0,0.00013273,2]
[406294056,1771696238331,-500.0,0.00013273,2]
[406294057,1771696238340,-500.30964572,0.00013273,2]
[406294058,1771696238350,-500.0,0.00013273,2]